fUSD/lending_fUSD_20251115
["ID","MTS","AMOUNT","RATE_DAILY","PERIOD"]
[394066110,1763242243369,-166.66,0.00024005,30]
[394066111,1763242243378,-4609.0,0.00024133,2]
[394066113,1763242243387,-418.08009869,0.0002421,2]
[394066114,1763242243396,-3663.49353186,0.0002421,2]
[394066115,1763242243406,-353.17882438,0.00024253,2]
[394066116,1763242243414,-592.14627742,0.0002465,2]
[394066117,1763242243424,-166.01142367,0.0002465,2]
[394066118,1763242243432,-773.62,0.00024658,2]
[394066119,1763242243442,-150.37,0.0002479,2]
[394066120,1763242243452,-150.37,0.0002479,2]
[394066121,1763242243462,-150.37,0.0002479,2]
[394066122,1763242243471,-150.37,0.0002479,2]
[394066123,1763242243481,-150.37,0.0002479,2]
[394066124,1763242243491,-150.37,0.0002479,2]
[394066125,1763242243500,-150.37,0.0002479,2]
[394066126,1763242243510,-150.37,0.0002479,2]
[394066127,1763242243519,-150.37,0.0002479,2]
[394066128,1763242243528,-150.37,0.0002479,2]
[394066129,1763242243537,-150.37,0.0002479,2]
[394066130,1763242243546,-500.0,0.00024799,2]
[394066131,1763242243555,-500.0,0.00024799,2]
[394066132,1763242243565,-625335.570453,0.000248,3]
[394066133,1763242243574,-151.0,0.000248,7]
[394066134,1763242243583,-151.0,0.000248,7]
[394066135,1763242243592,-500.997914,0.000248,7]
[394066136,1763242243601,-500.997914,0.000248,7]
[394066137,1763242243610,-500.997914,0.000248,7]
[394066138,1763242243619,-500.997914,0.000248,7]
[394066139,1763242243629,-188.737272,0.000248,7]
[394066140,1763242243639,-159.291271,0.000248,7]
[394066141,1763242243648,-170.31756,0.000248,7]
[394066142,1763242243657,-188.737272,0.000248,7]
[394066143,1763242243667,-151.0,0.000248,7]
[394066144,1763242243677,-151.0,0.000248,7]
[394066145,1763242243686,-170.31756,0.000248,7]
[394066146,1763242243696,-188.737272,0.000248,7]
[394066147,1763242243705,-170.31756,0.000248,7]
[394066148,1763242243715,-188.737272,0.000248,7]
[394066149,1763242243725,-151.0,0.000248,7]
[394066150,1763242243735,-170.31756,0.000248,7]
[394066151,1763242243745,-151.0,0.000248,7]
[394066152,1763242243754,-151.0,0.000248,7]
[394066153,1763242243763,-151.0,0.000248,7]
[394066154,1763242243772,-151.0,0.000248,7]
[394066155,1763242243781,-151.0,0.000248,7]
[394066156,1763242243791,-151.0,0.000248,7]
[394066157,1763242243800,-151.0,0.000248,7]
[394066158,1763242243809,-157.296087,0.000248,7]
[394066159,1763242243822,-160.70303,0.000248,7]
[394066160,1763242243831,-855.103751,0.000248,7]
[394066161,1763242243840,-473.7554,0.000248,7]
[394066162,1763242243851,-855.103751,0.000248,7]
[394066163,1763242243860,-473.7554,0.000248,7]
[394066164,1763242243870,-855.103751,0.000248,7]
[394066165,1763242243880,-151.0,0.000248,7]
[394066166,1763242243891,-473.7554,0.000248,7]
[394066167,1763242243900,-151.0,0.000248,7]
[394066168,1763242243909,-855.103751,0.000248,7]
[394066169,1763242243918,-473.7554,0.000248,7]
[394066170,1763242243928,-151.0,0.000248,7]
[394066171,1763242243938,-151.0,0.000248,7]
[394066172,1763242243947,-151.0,0.000248,7]
[394066173,1763242243956,-151.0,0.000248,7]
[394066174,1763242243965,-151.0,0.000248,7]
[394066175,1763242243976,-151.0,0.000248,7]
[394066176,1763242243985,-1348.898314,0.000248,7]
[394066177,1763242243994,-1348.898314,0.000248,7]
[394066178,1763242244004,-1348.898314,0.000248,7]
[394066179,1763242244013,-1348.898314,0.000248,7]
[394066180,1763242244023,-151.0,0.000248,7]
[394066181,1763242244033,-163.451954,0.000248,7]
[394066182,1763242244042,-151.0,0.000248,7]
[394066183,1763242244052,-163.451954,0.000248,7]
[394066184,1763242244061,-163.451954,0.000248,7]
[394066185,1763242244071,-151.0,0.000248,7]
[394066186,1763242244081,-163.451954,0.000248,7]
[394066187,1763242244091,-151.0,0.000248,7]
[394066188,1763242244100,-151.0,0.000248,7]
[394066189,1763242244109,-151.0,0.000248,7]
[394066190,1763242244119,-151.0,0.000248,7]
[394066192,1763242244128,-151.0,0.000248,7]
[394066194,1763242244138,-151.723148,0.000248,7]
[394066195,1763242244147,-151.0,0.000248,7]
[394066196,1763242244157,-151.0,0.000248,7]
[394066197,1763242244166,-151.0,0.000248,7]
[394066200,1763242244176,-255.28975,0.000248,7]
[394066201,1763242244186,-156.508496,0.000248,7]
[394066204,1763242244196,-162.989975,0.000248,7]
[394066205,1763242244205,-156.312673,0.000248,7]
[394066207,1763242244214,-162.989975,0.000248,7]
[394066209,1763242244223,-162.989975,0.000248,7]
[394066211,1763242244234,-160.374577,0.000248,7]
[394066213,1763242244243,-154.381413,0.000248,7]
[394066215,1763242244252,-162.989975,0.000248,7]
[394066218,1763242244261,-154.922288,0.000248,7]
[394066219,1763242244271,-151.0,0.000248,7]
[394066221,1763242244280,-151.0,0.000248,7]
[394066223,1763242244289,-152.623247,0.000248,7]
[394066226,1763242244298,-151.0,0.000248,7]
[394066227,1763242244307,-151.0,0.000248,7]
[394066229,1763242244316,-151.0,0.000248,7]
[394066232,1763242244329,-174.921219,0.000248,7]
[394066234,1763242244338,-175.174058,0.000248,7]
[394066235,1763242244348,-221.063607,0.000248,7]
[394066236,1763242244357,-151.0,0.000248,7]
[394066237,1763242244366,-151.0,0.000248,7]
[394066238,1763242244376,-151.0,0.000248,7]
[394066239,1763242244386,-167.369131,0.000248,7]
[394066240,1763242244395,-151.0,0.000248,7]
[394066241,1763242244404,-159.033963,0.000248,7]
[394066242,1763242244413,-151.0,0.000248,7]
[394066243,1763242244423,-151.589397,0.000248,7]
[394066244,1763242244432,-151.0,0.000248,7]
[394066245,1763242244441,-151.0,0.000248,7]
[394066246,1763242244451,-161.983103,0.000248,7]
[394066247,1763242244460,-279.632915,0.000248,7]
[394066248,1763242244470,-223.859606,0.000248,7]
[394066249,1763242244479,-151.0,0.000248,7]
[394066250,1763242244488,-223.859606,0.000248,7]
[394066251,1763242244497,-223.859606,0.000248,7]
[394066252,1763242244507,-151.0,0.000248,7]
[394066253,1763242244516,-151.0,0.000248,7]
[394066254,1763242244525,-223.859606,0.000248,7]
[394066255,1763242244535,-151.0,0.000248,7]
[394066256,1763242244544,-151.0,0.000248,7]
[394066257,1763242244554,-263.873412,0.000248,7]
[394066258,1763242244563,-151.0,0.000248,7]
[394066259,1763242244572,-263.873412,0.000248,7]
[394066260,1763242244581,-156.015428,0.000248,7]
[394066261,1763242244590,-151.0,0.000248,7]
[394066262,1763242244599,-263.873412,0.000248,7]
[394066263,1763242244609,-151.0,0.000248,7]
[394066264,1763242244618,-151.0,0.000248,7]
[394066265,1763242244627,-263.873412,0.000248,7]
[394066266,1763242244636,-151.0,0.000248,7]
[394066267,1763242244646,-151.0,0.000248,7]
[394066268,1763242244655,-151.0,0.000248,7]
[394066269,1763242244664,-151.0,0.000248,7]
[394066270,1763242244674,-220.72302,0.000248,7]
[394066271,1763242244683,-377.911698,0.000248,7]
[394066272,1763242244693,-151.0,0.000248,7]
[394066273,1763242244702,-151.0,0.000248,7]
[394066274,1763242244711,-151.0,0.000248,7]
[394066275,1763242244721,-151.0,0.000248,7]
[394066276,1763242244731,-220.72302,0.000248,7]
[394066277,1763242244741,-377.911698,0.000248,7]
[394066278,1763242244751,-184.448295,0.000248,7]
[394066279,1763242244760,-312.994165,0.000248,7]
[394066280,1763242244769,-151.0,0.000248,7]
[394066281,1763242244778,-151.0,0.000248,7]
[394066282,1763242244787,-220.72302,0.000248,7]
[394066283,1763242244796,-17431.60007936,0.00024845,2]
[394066284,1763242244810,-294.03748631,0.00024845,2]
[394066285,1763242244819,-1479.43003897,0.0002488,2]
[394066286,1763242244828,-320.56766369,0.0002488,2]
[394066287,1763242244838,-150.37,0.0002489,2]
[394066288,1763242244847,-150.37,0.0002489,2]
[394066289,1763242244856,-150.37,0.0002489,2]
[394066290,1763242244866,-150.37,0.0002489,2]
[394066291,1763242244875,-150.37,0.0002489,2]
[394066292,1763242244884,-150.37,0.0002489,2]
[394066293,1763242244895,-150.37,0.0002489,2]
[394066294,1763242244905,-169.51824297,0.0002489,2]
[394066295,1763242244914,-603983.356369,0.000249,3]
[394066296,1763242244923,-249.141003,0.000249,7]
[394066297,1763242244932,-151.0,0.000249,7]
[394066298,1763242244941,-211.271609,0.000249,7]
[394066299,1763242244951,-151.0,0.000249,7]
[394066300,1763242244960,-151.0,0.000249,7]
[394066301,1763242244969,-290.440392,0.000249,7]
[394066302,1763242244979,-151.0,0.000249,7]
[394066303,1763242244988,-162.989975,0.000249,7]
[394066304,1763242244998,-162.989975,0.000249,7]
[394066305,1763242245007,-162.989975,0.000249,7]
[394066306,1763242245017,-162.989975,0.000249,7]
[394066307,1763242245026,-151.0,0.000249,7]
[394066308,1763242245035,-151.0,0.000249,7]
[394066309,1763242245044,-151.0,0.000249,7]
[394066310,1763242245053,-151.0,0.000249,7]
[394066311,1763242245062,-151.0,0.000249,7]
[394066312,1763242245071,-151.0,0.000249,7]
[394066313,1763242245080,-151.0,0.000249,7]
[394066314,1763242245089,-151.0,0.000249,7]
[394066315,1763242245099,-151.0,0.000249,7]
[394066316,1763242245109,-151.0,0.000249,7]
[394066317,1763242245118,-151.0,0.000249,7]
[394066318,1763242245245,-223.859606,0.000249,7]
[394066319,1763242245255,-151.0,0.000249,7]
[394066320,1763242245264,-223.859606,0.000249,7]
[394066321,1763242245274,-223.859606,0.000249,7]
[394066322,1763242245283,-171.825475,0.000249,7]
[394066323,1763242245292,-154.557523,0.000249,7]
[394066324,1763242245301,-223.859606,0.000249,7]
[394066325,1763242245310,-151.0,0.000249,7]
[394066326,1763242245320,-151.0,0.000249,7]
[394066327,1763242245329,-263.873412,0.000249,7]
[394066328,1763242245338,-175.410442,0.000249,7]
[394066329,1763242245347,-263.873412,0.000249,7]
[394066330,1763242245357,-151.0,0.000249,7]
[394066331,1763242245365,-263.873412,0.000249,7]
[394066332,1763242245375,-151.0,0.000249,7]
[394066333,1763242245383,-151.0,0.000249,7]
[394066334,1763242245393,-151.0,0.000249,7]
[394066335,1763242245401,-263.873412,0.000249,7]
[394066336,1763242245412,-151.0,0.000249,7]
[394066337,1763242245421,-151.0,0.000249,7]
[394066338,1763242245431,-151.0,0.000249,7]
[394066339,1763242245440,-220.72302,0.000249,7]
[394066340,1763242245449,-377.911698,0.000249,7]
[394066341,1763242245458,-151.0,0.000249,7]
[394066342,1763242245467,-151.0,0.000249,7]
[394066343,1763242245477,-151.0,0.000249,7]
[394066344,1763242245486,-158.898791,0.000249,7]
[394066345,1763242245495,-220.72302,0.000249,7]
[394066346,1763242245504,-377.911698,0.000249,7]
[394066347,1763242245514,-312.994165,0.000249,7]
[394066348,1763242245523,-151.0,0.000249,7]
[394066349,1763242245532,-1721.82,0.0002498,2]
[394066350,1763242245541,-150.99,0.0002498,2]
[394066351,1763242245550,-299.99,0.0002498,7]
[394066352,1763242245559,-9999.99,0.0002498,2]
[394066353,1763242245568,-5875.42,0.0002498,2]
[394066354,1763242245578,-396.645407,0.0002498,7]
[394066355,1763242245587,-151.0,0.0002498,7]
[394066356,1763242245596,-396.645407,0.0002498,7]
[394066357,1763242245605,-151.0,0.0002498,7]
[394066358,1763242245614,-396.645407,0.0002498,7]
[394066359,1763242245623,-396.645407,0.0002498,7]
[394066360,1763242245632,-151.0,0.0002498,7]
[394066361,1763242245641,-151.0,0.0002498,7]
[394066362,1763242245650,-151.0,0.0002498,7]
[394066363,1763242245659,-151.0,0.0002498,7]
[394066364,1763242245668,-151.0,0.0002498,7]
[394066365,1763242245678,-151.0,0.0002498,7]
[394066366,1763242245687,-151.0,0.0002498,7]
[394066367,1763242245696,-151.0,0.0002498,7]
[394066368,1763242245706,-151.0,0.0002498,7]
[394066369,1763242245715,-151.0,0.0002498,7]
[394066370,1763242245724,-151.0,0.0002498,7]
[394066371,1763242245734,-164.710463,0.0002498,7]
[394066372,1763242245743,-151.0,0.0002498,7]
[394066373,1763242245753,-151.0,0.0002498,7]
[394066374,1763242245762,-151.0,0.0002498,7]
[394066375,1763242245772,-151.0,0.0002498,7]
[394066376,1763242245781,-151.0,0.0002498,7]
[394066377,1763242245790,-246.593694,0.0002498,7]
[394066378,1763242245799,-159.140327,0.0002498,7]
[394066379,1763242245809,-246.593694,0.0002498,7]
[394066380,1763242245822,-246.593694,0.0002498,7]
[394066381,1763242245831,-151.0,0.0002498,7]
[394066382,1763242245841,-246.593694,0.0002498,7]
[394066383,1763242245850,-151.0,0.0002498,7]
[394066384,1763242245861,-151.0,0.0002498,7]
[394066385,1763242245870,-151.0,0.0002498,7]
[394066386,1763242245879,-151.0,0.0002498,7]
[394066387,1763242245890,-151.0,0.0002498,7]
[394066388,1763242245900,-157.659423,0.0002498,7]
[394066389,1763242245909,-151.0,0.0002498,7]
[394066390,1763242245918,-151.0,0.0002498,7]
[394066391,1763242245927,-151.0,0.0002498,7]
[394066392,1763242245936,-151.0,0.0002498,7]
[394066393,1763242245945,-151.0,0.0002498,7]
[394066394,1763242245953,-152.621242,0.0002498,7]
[394066395,1763242245963,-153.72047,0.0002498,7]
[394066396,1763242245972,-151.0,0.0002498,7]
[394066397,1763242245981,-151.0,0.0002498,7]
[394066398,1763242245990,-151.0,0.0002498,7]
[394066399,1763242246000,-151.0,0.0002498,7]
[394066400,1763242246009,-602.19500375,0.00025,2]
[394066401,1763242246019,-205.30448806,0.00025,2]
[394066402,1763242246028,-1765.74792329,0.00025,2]
[394066403,1763242246037,-155.98689118,0.00025,2]
[394066404,1763242246046,-360.0,0.00025,2]
[394066405,1763242246055,-5914.87530298,0.00025,2]
[394066406,1763242246063,-3011.24515109,0.00025,2]
[394066407,1763242246073,-7059.13160969,0.00025,2]
[394066408,1763242246082,-1052.7453929,0.00025,2]
[394066409,1763242246091,-165.46295318,0.00025,2]
[394066410,1763242246100,-4789.56621979,0.00025,15]
[394066411,1763242246109,-2291.55620745,0.00025,2]
[394066412,1763242246118,-1567.61,0.00025329,30]
[394066413,1763242246127,-151.0,0.00025418,7]
[394066414,1763242246136,-151.0,0.00025418,7]
[394066415,1763242246145,-151.0,0.00025418,7]
[394066416,1763242246154,-151.0,0.00025418,7]
[394066417,1763242246163,-151.0,0.00025418,7]
[394066418,1763242246172,-151.0,0.00025418,7]
[394066419,1763242246181,-151.0,0.00025418,7]
[394066420,1763242246190,-151.0,0.00025418,7]
[394066421,1763242246200,-151.0,0.00025418,7]
[394066422,1763242246209,-151.0,0.00025418,7]
[394066423,1763242246219,-151.0,0.00025418,7]
[394066424,1763242246228,-151.0,0.00025418,7]
[394066425,1763242246237,-158.487929,0.00025418,7]
[394066426,1763242246246,-151.0,0.00025418,7]
[394066427,1763242246255,-151.0,0.00025418,7]
[394066428,1763242246263,-151.0,0.00025418,7]
[394066429,1763242246272,-151.0,0.00025418,7]
[394066430,1763242246281,-200.17065,0.00025418,7]
[394066431,1763242246290,-151.0,0.00025418,7]
[394066432,1763242246299,-151.0,0.00025418,7]
[394066433,1763242246308,-200.17065,0.00025418,7]
[394066434,1763242246318,-151.0,0.00025418,7]
[394066435,1763242246327,-154.019544,0.00025418,7]
[394066436,1763242246336,-151.0,0.00025418,7]
[394066437,1763242246345,-200.17065,0.00025418,7]
[394066438,1763242246354,-151.0,0.00025418,7]
[394066439,1763242246363,-200.17065,0.00025418,7]
[394066440,1763242246373,-151.0,0.00025418,7]
[394066441,1763242246382,-151.0,0.00025418,7]
[394066442,1763242246391,-151.0,0.00025418,7]
[394066443,1763242246400,-151.0,0.00025418,7]
[394066444,1763242246409,-326.765039,0.00025418,7]
[394066445,1763242246418,-326.765039,0.00025418,7]
[394066446,1763242246427,-326.765039,0.00025418,7]
[394066447,1763242246436,-326.765039,0.00025418,7]
[394066448,1763242246445,-821.0,0.00025438,2]
[394066449,1763242246454,-1598.0,0.00025438,2]
[394066450,1763242246463,-793.0,0.00025438,2]
[394066451,1763242246472,-1275.0,0.00025438,2]
[394066452,1763242246483,-1190.0,0.00025438,2]
[394066453,1763242246492,-907.0,0.00025438,2]
[394066454,1763242246502,-3430.0,0.00025438,2]
[394066455,1763242246511,-608.0,0.00025438,2]
[394066456,1763242246520,-3170.0,0.00025438,2]
[394066457,1763242246530,-500.0,0.00025473,2]
[394066458,1763242246539,-3827.05,0.00025773,2]
[394066459,1763242246549,-1613.0,0.00025849,2]
[394066460,1763242246558,-1489.0,0.00025849,2]
[394066461,1763242246567,-594.09518693,0.0002599,2]
[394066462,1763242246576,-21162.63685909,0.00026,2]
[394066463,1763242246585,-4138.65,0.00026,2]
[394066464,1763242246595,-214.1178425,0.00026,2]
[394066465,1763242246604,-161.16998996,0.00026,2]
[394066466,1763242246614,-500.0,0.00026083,2]
[394066467,1763242246623,-6453.0,0.00026501,2]
[394066468,1763242246632,-799.45,0.00026676,2]
[394066469,1763242246641,-623.34,0.000267,7]
[394066470,1763242246650,-164.0,0.00027,7]
[394066471,1763242246660,-250.0,0.00027,2]
[394066472,1763242246669,-1022.44098082,0.00027,2]
[394066473,1763242246678,-530.0,0.00027,2]
[394066474,1763242246689,-266.13,0.00027123,4]
[394066475,1763242246698,-509.66911117,0.00027346,2]
[394066476,1763242246707,-150.0,0.00027357,2]
[394066477,1763242246716,-2096.16169526,0.00027357,2]
[394066478,1763242246725,-150.0,0.00027357,2]
[394066480,1763242246735,-1234.68273547,0.00027357,2]
[394066482,1763242246745,-150.0,0.00027357,2]
[394066483,1763242246754,-15889.78973315,0.00027357,2]
[394066484,1763242246763,-4065.64625683,0.0002739,2]
[394066485,1763242246772,-8031.72991619,0.0002739,2]
[394066486,1763242246782,-300.0,0.00027397,2]
[394066488,1763242246791,-773.62,0.00027397,2]
[394066490,1763242246800,-500.0,0.00027397,5]
[394066492,1763242246814,-158.35583455,0.00027397,5]
[394066493,1763242246823,-157.17051194,0.00027397,5]
[394066494,1763242246832,-167.01,0.000274,7]
[394066495,1763242246841,-177.06,0.000274,7]
[394066496,1763242246850,-2059.18,0.000274,2]
[394066497,1763242246861,-198.86769523,0.000275,2]
[394066498,1763242246870,-543.26127162,0.000275,2]
[394066499,1763242246878,-17431.60007936,0.00027594,2]
[394066500,1763242246888,-294.03748631,0.00027594,2]
[394066501,1763242246897,-600.0,0.00027607,2]
[394066502,1763242246906,-1479.43003895,0.00027623,2]
[394066503,1763242246915,-150.0,0.00027909,2]
[394066504,1763242246924,-150.0,0.00027909,2]
[394066505,1763242246933,-150.0,0.00027909,2]
[394066506,1763242246942,-150.0,0.00027909,2]
[394066507,1763242246952,-150.0,0.00027909,2]
[394066508,1763242246961,-150.0,0.00027909,2]
[394066509,1763242246970,-150.0,0.00027909,2]
[394066510,1763242246979,-263.771,0.00027909,2]
[394066511,1763242246988,-150.0,0.00027909,2]
[394066512,1763242246997,-150.0,0.00027909,2]
[394066513,1763242247006,-821.85666392,0.00028,60]
[394066514,1763242247015,-160.0,0.00028,2]
[394066515,1763242247024,-2258.0,0.00028245,2]
[394066516,1763242247033,-821.0,0.00028438,2]
[394066518,1763242247042,-1598.0,0.00028438,2]
[394066519,1763242247051,-793.0,0.00028438,2]
[394066520,1763242247060,-1275.0,0.00028438,2]
[394066522,1763242247069,-1190.0,0.00028438,2]
[394066524,1763242247192,-907.0,0.00028438,2]
[394066525,1763242247202,-3430.0,0.00028438,2]
[394066526,1763242247211,-608.0,0.00028438,2]
[394066527,1763242247221,-3170.0,0.00028438,2]
[394066528,1763242247230,-747.09760847,0.00029,2]
[394066529,1763242247239,-1929.64897332,0.00029,2]
[394066530,1763242247249,-9035.0,0.00029101,2]
[394066531,1763242247258,-228.93022402,0.00029103,30]
[394066532,1763242247267,-715.67637014,0.00029177,2]
[394066533,1763242247276,-179.21101701,0.00029245,2]
[394066534,1763242247285,-1116.76580326,0.000295,7]
[394066535,1763242247295,-284.45,0.00029595,2]
[394066536,1763242247304,-1023.66106201,0.0002962,2]
[394066537,1763242247313,-2059.18,0.000297,2]
[394066538,1763242247322,-234.45350801,0.0002999,2]
[394066539,1763242247331,-174.0,0.0003,14]
[394066540,1763242247341,-47319.30604691,0.0003,5]
[394066541,1763242247350,-471.33381722,0.0003,2]
[394066542,1763242247359,-151.0,0.0003,7]
[394066543,1763242247368,-151.0,0.0003,7]
[394066544,1763242247378,-500.997914,0.0003,7]
[394066545,1763242247387,-500.997914,0.0003,7]
[394066546,1763242247396,-500.997914,0.0003,7]
[394066547,1763242247406,-500.997914,0.0003,7]
[394066548,1763242247415,-188.737272,0.0003,7]
[394066549,1763242247425,-170.31756,0.0003,7]
[394066550,1763242247435,-175.243991,0.0003,7]
[394066551,1763242247444,-188.737272,0.0003,7]
[394066552,1763242247454,-156.692914,0.0003,7]
[394066553,1763242247464,-170.31756,0.0003,7]
[394066554,1763242247473,-188.737272,0.0003,7]
[394066555,1763242247483,-1795.74773521,0.0003,2]
[394066556,1763242247493,-170.31756,0.0003,7]
[394066557,1763242247502,-188.737272,0.0003,7]
[394066558,1763242247511,-151.0,0.0003,7]
[394066559,1763242247521,-170.31756,0.0003,7]
[394066560,1763242247530,-151.0,0.0003,7]
[394066561,1763242247540,-4580.43669035,0.0003,2]
[394066562,1763242247549,-151.0,0.0003,7]
[394066563,1763242247558,-151.0,0.0003,7]
[394066564,1763242247567,-151.0,0.0003,7]
[394066565,1763242247580,-151.0,0.0003,7]
[394066566,1763242247589,-151.0,0.0003,7]
[394066567,1763242247599,-151.0,0.0003,7]
[394066568,1763242247609,-855.103751,0.0003,7]
[394066569,1763242247619,-473.7554,0.0003,7]
[394066570,1763242247629,-855.103751,0.0003,7]
[394066571,1763242247638,-473.7554,0.0003,7]
[394066572,1763242247648,-855.103751,0.0003,7]
[394066573,1763242247658,-162.133631,0.0003,7]
[394066574,1763242247667,-473.7554,0.0003,7]
[394066575,1763242247677,-158.712859,0.0003,7]
[394066576,1763242247687,-413.39975124,0.0003,2]
[394066577,1763242247697,-855.103751,0.0003,7]
[394066578,1763242247706,-473.7554,0.0003,7]
[394066579,1763242247715,-161.07548295,0.0003,2]
[394066580,1763242247725,-222.030479,0.0003,7]
[394066581,1763242247736,-285.69320133,0.0003,7]
[394066582,1763242247745,-151.0,0.0003,7]
[394066583,1763242247754,-151.0,0.0003,7]
[394066584,1763242247764,-151.0,0.0003,7]
[394066585,1763242247773,-151.0,0.0003,7]
[394066586,1763242247782,-1348.898314,0.0003,7]
[394066587,1763242247791,-1348.898314,0.0003,7]
[394066588,1763242247800,-1348.898314,0.0003,7]
[394066589,1763242247811,-1348.898314,0.0003,7]
[394066590,1763242247823,-151.0,0.0003,7]
[394066591,1763242247832,-163.451954,0.0003,7]
[394066592,1763242247841,-163.451954,0.0003,7]
[394066593,1763242247851,-163.451954,0.0003,7]
[394066594,1763242247862,-151.0,0.0003,7]
[394066595,1763242247871,-163.451954,0.0003,7]
[394066596,1763242247880,-151.0,0.0003,7]
[394066597,1763242247889,-151.0,0.0003,7]
[394066598,1763242247898,-200.0,0.0003013,2]
[394066599,1763242247908,-773.62,0.00030137,2]
[394066600,1763242247918,-623.34,0.000302,7]
[394066601,1763242247927,-500.0,0.00030332,2]
[394066602,1763242247936,-17431.60007936,0.00030343,2]
[394066603,1763242247945,-294.03748631,0.00030343,15]
[394066604,1763242247956,-1479.43003895,0.00030367,2]
[394066605,1763242247976,-150.0,0.00030373,5]
[394066606,1763242247998,-1567.61,0.00030376,30]
[394066607,1763242248008,-177.06,0.000307,30]
[394066608,1763242248017,-3162.0,0.00030862,2]
[394066609,1763242248027,-250.0,0.00030921,5]
[394066610,1763242248036,-11497.46816876,0.0003095,2]
[394066611,1763242248045,-1378.0433413,0.00031,2]
[394066612,1763242248055,-318.18542228,0.00031,120]
[394066613,1763242248064,-167.01,0.000311,7]
[394066614,1763242248073,-311.1,0.00031286,30]
[394066615,1763242248082,-640.82167638,0.0003143,4]
[394066616,1763242248091,-821.0,0.00031438,2]
[394066617,1763242248100,-1598.0,0.00031438,2]
[394066618,1763242248109,-793.0,0.00031438,2]
[394066619,1763242248119,-1275.0,0.00031438,2]
[394066620,1763242248128,-1190.0,0.00031438,2]
[394066621,1763242248137,-907.0,0.00031438,2]
[394066622,1763242248146,-608.0,0.00031438,2]
[394066623,1763242248156,-3170.0,0.00031438,2]
[394066624,1763242248165,-350.0,0.00031468,5]
[394066625,1763242248174,-174.0,0.00031644,14]
[394066626,1763242248184,-181.93337755,0.00031733,7]
[394066627,1763242248193,-12649.0,0.00031956,3]
[394066628,1763242248202,-3078.10691114,0.00032,7]
[394066629,1763242248212,-2111.46682515,0.00032,2]
[394066630,1763242248221,-2059.18,0.00032,2]
[394066631,1763242248232,-450.0,0.00032016,5]
[394066632,1763242248241,-500.0,0.00032093,2]
[394066633,1763242248250,-600.0,0.00032114,2]
[394066634,1763242248259,-550.0,0.00032564,5]
[394066635,1763242248268,-773.62,0.00032877,2]
[394066636,1763242248277,-311.1,0.00032939,30]
[394066637,1763242248286,-212028.0,0.00033,2]
[394066638,1763242248295,-3386.0,0.00033015,5]
[394066639,1763242248304,-17431.60007936,0.00033092,2]